Cogmind - Beta 13 @@@ ROGUE MODE // 2024.04.09 @ 23:28:28 // Winter2019/RPGLIKE Player: H3-RMN Result: Destroyed by G-67 Veteran with Plasma Rifle Performance ------------- Evolutions (6) 3000 Regions Visited (19) 3800 Robots Destroyed (464) 2320 Value Destroyed (19847) 19847 Prototype IDs (70) 1400 Alien Tech Used (0) 0 Bonus (7747) 7747 TOTAL SCORE: 38114 Bonus ------- High Alert Combat Kills 2748 Follower Combat Kills 1677 Entered Garrisons 1000 Used RIF Installer 3500 Friendly Fire -1178 Cogmind --------- Core Integrity 0/1000 Matter 279/300 Energy 456/800 System Corruption 0% Temperature Cool (12) Movement Hovering (42) Location -4/Factory Parts ------- > --- POWER (2) -------- Hybrid Deuterium Engine > --- PROPULSION (3) --- Cooled Gravmag System Cooled Gravmag System Cooled Antigrav System > --- UTILITY (12) ----- Advanced Signal Interpreter Long-range Terrain Scanner Transport Network Coupler Advanced Salvage Targeting Computer Improved Powered Armor Advanced Hacking Suite Advanced Hacking Suite Advanced Hacking Suite Relay Coupler [NC] (35) Relay Coupler [Proto] (66) > --- WEAPON (3) ------- Compact Tesla Bomb Launcher Gravity Flail > --- INVENTORY (6) ---- Graphene Brace Authchip [Device] Advanced Trap Extractor (3/8 EM Surge) Advanced KE Penetrator Multitool Peak State ------------ > --- POWER ------------ Hybrid Deuterium Engine Meta Core > --- PROPULSION ------- Cooled Gravmag System Cooled Gravmag System Cooled Antigrav System > --- UTILITY ---------- Advanced Signal Interpreter Long-range Terrain Scanner Transport Network Coupler Advanced Salvage Targeting Computer Improved Armor Integrity Analyzer Improved Powered Armor Graphene Brace Advanced Hacking Suite Advanced Hacking Suite Advanced Hacking Suite Relay Coupler [NC] Relay Coupler [Proto] > --- WEAPON ----------- Improved Lightning Gun Advanced KE Penetrator Advanced KE Penetrator Improved Datajack > --- INVENTORY -------- Authchip [Device] Advanced Trap Extractor Compact Tesla Bomb Launcher Multitool Gravity Flail [Rating: 134] Favorites ----------- Power Meta Core Engine Hybrid Deuterium Engine Power Core Meta Core Propulsion Cooled Gravmag System Treads Light Treads Wheel Wheel Hover Unit Cooled Gravmag System Utility Hacking Suite Device Improved Terrain Scanner Storage Advanced Matter Compressor Processor Machine Analyzer Hackware Hacking Suite Protection Improved Powered Armor Weapon Advanced KE Penetrator Energy Gun EM Pulse Gun Energy Cannon Beam Cannon Ballistic Gun Advanced KE Penetrator Ballistic Cannon Light Antimatter Cannon Launcher EMP Blaster Special Weapon Mining Laser Impact Weapon Gravity Flail Slashing Weapon Plasma Sword Piercing Weapon Spear Special Melee Weapon Improved Datajack Build | -11 -10 -10 -10 -8 -8 -8 -7 -7 -7 -7 -7 -7 -6 -6 -6 -6 -5 -5 -4 ------- Run | Yrd Mat Min Sub Mat Gar Mat Fac Was Fac Gar Fac Gar Fac Was Fac Gar Fac Gar Fac Slots Evolved 16 | 3 1 1 1 4 2 . 1 . . . . . 1 . . 1 . . 1 Power 1 | . . . . 1 . . . . . . . . . . . . . . . Propulsion 2 | 1 . . . . 1 . . . . . . . . . . . . . . Utility 11 | 1 1 . 1 3 1 . 1 . . . . . 1 . . 1 . . 1 Weapon 2 | 1 . 1 . . . . . . . . . . . . . . . . . Parts Attached 219 | 10 17 4 4 30 9 23 35 1 6 2 23 5 19 . 10 2 2 4 13 Power 4 | 1 . 1 1 1 . . . . . . . . . . . . . . . Engine 3 | 1 . 1 . 1 . . . . . . . . . . . . . . . Core 1 | . . . 1 . . . . . . . . . . . . . . . . Reactor . | . . . . . . . . . . . . . . . . . . . . Propulsion 21 | 2 5 . . 3 1 3 2 . . . 1 . . . . . 1 . 3 Treads 1 | 1 . . . . . . . . . . . . . . . . . . . Leg . | . . . . . . . . . . . . . . . . . . . . Wheel 3 | 1 2 . . . . . . . . . . . . . . . . . . Hover 17 | . 3 . . 3 1 3 2 . . . 1 . . . . . 1 . 3 Flight . | . . . . . . . . . . . . . . . . . . . . Utility 113 | 2 2 . 3 11 3 14 21 1 6 2 12 5 14 . 8 1 1 2 5 Device 54 | 2 1 . 1 4 1 8 13 . 3 1 4 3 4 . 5 . . 1 3 Storage 3 | . . . . . . . 2 . . . . . 1 . . . . . . Processor 9 | . . . . 2 . . 2 . . . . 1 3 . 1 . . . . Hackware 19 | . . . . 4 1 1 2 1 1 . 3 1 . . 1 1 1 1 1 Protection 28 | . 1 . 2 1 1 5 2 . 2 1 5 . 6 . 1 . . . 1 Artifact . | . . . . . . . . . . . . . . . . . . . . Weapon 81 | 5 10 3 . 15 5 6 12 . . . 10 . 5 . 2 1 . 2 5 Energy Gun 32 | 4 4 . . 6 2 2 4 . . . 4 . 2 . 1 1 . 1 1 Energy Cannon 3 | . 1 . . 1 . . . . . . 1 . . . . . . . . Ballistic Gun 17 | . 3 1 . 5 1 2 3 . . . 1 . 1 . . . . . . Ballistic Cannon 1 | . . . . . . . 1 . . . . . . . . . . . . Launcher 12 | . 1 1 . 2 2 2 2 . . . . . . . . . . 1 1 Special Weapon 4 | 1 1 1 . . . . . . . . . . . . . . . . 1 Impact Weapon 8 | . . . . . . . . . . . 3 . 2 . 1 . . . 2 Slashing Weapon 2 | . . . . . . . 1 . . . 1 . . . . . . . . Piercing Weapon 1 | . . . . . . . 1 . . . . . . . . . . . . Special Melee Weapon 1 | . . . . 1 . . . . . . . . . . . . . . . Unidentified Prototypes 19 | . 1 . 1 4 . . 8 . . . 4 1 . . . . . . . Corrupted Parts 1 | . . . . . . . . . . . . . 1 . . . . . . System Corruption 3 | . . . . . . . . . . . . . 3 . . . . . . Parts Lost 9 | . . . . 1 . . 1 . . . . . 2 . 2 . . 1 2 Power 1 | . . . . . . . . . . . . . . . . . . . 1 Propulsion 1 | . . . . . . . . . . . . . 1 . . . . . . Utility 4 | . . . . . . . . . . . . . 1 . 2 . . 1 . Weapon 3 | . . . . 1 . . 1 . . . . . . . . . . . 1 Highest Loss Streak 1 | . . . . 1 . . 1 . . . . . 1 . 1 . . 1 1 To Critical Strikes 1 | . . . . 1 . . . . . . . . . . . . . . . Average Slot Usage (%) 96 | . 99 100 81 89 99 99 99 100 99 100 99 99 99 95 98 100 100 99 97 Engine 5 | . 13 11 5 1 5 5 5 5 5 5 5 5 5 5 5 5 5 5 4 Core 4 | . . . 3 5 5 5 5 5 5 5 5 5 5 5 5 5 5 5 4 Hover 17 | . 11 24 18 17 20 20 20 20 20 20 20 20 15 15 15 15 15 15 14 Device 9 | . 16 24 18 13 11 9 6 5 . . 1 4 6 5 7 10 10 12 7 Processor 10 | . . . . 6 10 10 12 15 15 15 13 10 14 20 20 20 20 20 19 Hackware 19 | . . . . 17 17 24 28 30 30 30 30 30 27 20 20 18 20 20 25 Protection 5 | . 12 11 8 3 4 2 . . 3 4 4 5 4 5 5 5 5 1 2 Energy Gun 5 | . 16 11 8 4 5 4 4 5 5 5 3 5 2 . 3 4 5 4 4 Ballistic Gun 9 | . 5 11 8 13 10 9 9 10 10 10 10 10 9 10 10 10 10 10 9 Special Weapon 1 | . 4 3 8 . . . . . . . . . . . . . . . . Special Melee Weapon 3 | . . . . 2 5 5 5 5 5 5 5 5 5 5 5 5 5 5 4 Naked Turns . | . . . . . . . . . . . . . . . . . . . . Heaviest Build 49 | 11 16 19 34 33 31 35 34 34 40 40 44 44 49 42 46 46 46 46 45 Greatest Support 54 | 20 24 24 34 49 54 54 54 52 52 52 52 52 52 46 46 46 46 46 46 Greatest Overweight (x) 2 | 2 1 . . . . 1 . . . . . . 1 . . . . . 1 Average Overweight (x) . | . . . . . . . . . . . . . . . . . . . . Largest Inventory Capacity 6 | 2 3 3 4 5 5 6 6 6 6 6 6 6 6 6 6 6 6 6 6 Average Capacity 4 | 1 2 3 3 4 5 5 6 6 6 6 6 6 6 6 6 6 6 6 6 Most Carried 6 | 2 3 3 4 5 5 6 6 6 6 6 6 6 6 6 6 6 6 6 6 Average Carried 4 | 1 2 2 3 4 4 5 5 6 5 5 5 6 5 6 6 6 5 6 5 Final Capacity 6 | 2 3 3 4 5 5 6 6 6 6 6 6 6 6 6 6 6 6 6 6 Final Carried 6 | 2 3 3 4 5 5 6 6 6 6 6 6 6 6 6 6 6 6 6 5 Class Distribution -------------------- 41% | Wizard-Scout 25% | Mutant 9% | Scavenger-Skirmisher 9% | Hacker-Scout 4% | Wizard-Assassin 3% | Hacker-Tank Dominant Class ---------------- Mutant | -10/Materials Scavenger-Mutant | -10/Mines Scavenger-Skirmisher | -10/Subcaves Hacker-Scout | -8/Materials Hacker-Scout | -8/Garrison Wizard-Scout | -8/Materials Wizard-Scout | -7/Factory Wizard-Scout | -7/Waste Wizard-Scout | -7/Factory Wizard-Scout | -7/Garrison Wizard-Scout | -7/Factory Wizard-Scout | -7/Garrison Wizard-Scout | -6/Factory Wizard-Scout | -6/Waste Wizard-Scout | -6/Factory Hacker-Scout | -6/Garrison Wizard-Scout | -5/Factory Wizard-Scout | -5/Garrison Wizard-Scout | -4/Factory Resources | -11 -10 -10 -10 -8 -8 -8 -7 -7 -7 -7 -7 -7 -6 -6 -6 -6 -5 -5 -4 ----------- Run | Yrd Mat Min Sub Mat Gar Mat Fac Was Fac Gar Fac Gar Fac Was Fac Gar Fac Gar Fac Matter Collected 10213 | 300 332 116 296 1068 532 1080 1674 138 136 214 799 621 849 34 263 646 348 371 396 Remotely . | . . . . . . . . . . . . . . . . . . . . Salvage Created 19629 | 219 953 106 609 1535 1039 1366 1859 8 310 496 1602 1920 1731 383 429 1424 1515 1245 880 Parts 1099 | 7 53 23 42 117 36 109 100 1 17 14 106 68 102 1 31 85 79 59 49 Haulers Intercepted 9 | . 2 . . 5 . 1 . . . . 1 . . . . . . . . Recyclers Shooed 4 | . . . . 1 . . 1 . . . . . . . . . . . 2 Parts Field Recycled . | . . . . . . . . . . . . . . . . . . . . Retrieved Matter . | . . . . . . . . . . . . . . . . . . . . Parts Self-Destructed 12 | . . . 12 . . . . . . . . . . . . . . . . Prevented . | . . . . . . . . . . . . . . . . . . . . Kills | -11 -10 -10 -10 -8 -8 -8 -7 -7 -7 -7 -7 -7 -6 -6 -6 -6 -5 -5 -4 ------- Run | Yrd Mat Min Sub Mat Gar Mat Fac Was Fac Gar Fac Gar Fac Was Fac Gar Fac Gar Fac Combat Hostiles Destroyed 379 | 6 19 7 17 33 23 41 45 . 4 . 31 33 31 1 7 23 25 23 10 Melee 4 | . . . . . . . . . . . 2 . 2 . . . . . . Guns 329 | 5 13 7 16 28 15 36 38 . 4 . 28 33 25 1 7 23 25 15 10 Cannons 1 | . 1 . . . . . . . . . . . . . . . . . . AOE 39 | . 4 . 1 5 8 5 6 . . . . . 3 . . . . 7 . Classes Destroyed 23 | 3 5 2 3 4 1 1 1 . . . . . 1 1 . 1 . . . Worker 21 | . 2 . . 1 . . 2 . . . 7 . 4 . 2 . 1 . 2 Builder 15 | . . . . 3 . . . . . . 6 . 2 . . . 2 . 2 Tunneler 8 | 2 1 1 . . . . . . . . 2 . . . 1 . . . 1 Hauler 10 | . 2 . . 5 . 1 . . . . 1 . 1 . . . . . . Recycler 11 | 1 2 . . 1 . . . . . . 2 . 1 . . . 1 . 3 Mechanic 1 | . . . . . . . . . . . . . 1 . . . . . . Operator 10 | . 2 . . 1 . 1 . . . . 2 . 1 . . 1 1 . 1 Turret 2 | . . . 2 . . . . . . . . . . . . . . . . Watcher 15 | . 2 . . 1 . 3 2 . 1 . 4 . 1 . . . 1 . . Swarmer 89 | . . 2 4 10 8 7 4 . . . 5 14 11 . . . 8 11 5 Cutter 9 | . . . . 3 1 3 . . . . 2 . . . . . . . . Grunt 158 | . 19 4 3 9 7 20 26 . 3 . 14 11 5 . 1 15 10 8 3 Brawler 7 | . . . . . . 1 3 . . . . . 1 . . . 1 1 . Duelist 8 | . . . . . . . 1 . . . . 1 1 . 1 2 . 2 . Protector 1 | . . . . . . . . . . . . . . . . 1 . . . Sentry 46 | . . 1 1 9 3 9 9 . . . 2 3 4 . 3 2 . . . Hunter 21 | . . . . 1 . . . . . . 4 3 6 . . 1 3 1 2 Programmer 19 | . . . . . 4 . 2 . 1 . 3 1 2 . 2 1 3 . . Heavy 5 | . . . . 1 . 1 . . . . 1 . 1 . . 1 . . . Compactor 1 | . . . . . . . . . . . . . . 1 . . . . . Artisan 1 | . . . 1 . . . . . . . . . . . . . . . . Subdweller 9 | . . . 9 . . . . . . . . . . . . . . . . Assembled 6 | 6 . . . . . . . . . . . . . . . . . . . Wasp 1 | . . . . . . . . 1 . . . . . . . . . . . Thug 1 | . . . . . . . . . . . . 1 . . . . . . . Guerrilla 1 | . . . . . . . . . . . . 1 . . . . . . . Best Kill Streak 15 | 3 4 2 5 9 6 8 8 . 3 . 8 9 8 1 3 6 10 15 12 Combat Bots Only 15 | 3 4 2 4 6 6 8 7 . 3 . 3 9 6 1 2 6 9 15 6 Max Kills in Single Turn 8 | 1 2 1 1 2 4 2 2 1 1 . 8 3 4 1 2 3 2 4 3 Gunslinging 2 | . 1 . . 1 . 1 . . . . . 2 1 . . 1 1 . 1 Exploded 4 | . 1 . 1 2 4 1 2 . . . . . 3 . . . . 4 . Melee 1 | . . . . . . . . . . . 1 . 1 . . . . . . Uniques/NPCs Destroyed . | . . . . . . . . . . . . . . . . . . . . Combat | -11 -10 -10 -10 -8 -8 -8 -7 -7 -7 -7 -7 -7 -6 -6 -6 -6 -5 -5 -4 -------- Run | Yrd Mat Min Sub Mat Gar Mat Fac Was Fac Gar Fac Gar Fac Was Fac Gar Fac Gar Fac Hostile Shots Fired 2033 | 48 49 17 138 106 91 127 368 . 9 . 157 166 220 . 87 126 105 126 93 Missed 741 | 18 9 7 52 35 22 40 161 . 1 . 55 59 59 . 44 47 45 51 36 Damage Taken 19132 | 484 582 139 1299 1141 773 1408 1968 . 145 123 1601 1550 2044 41 563 1513 1130 1305 1323 Core 13308 | 385 399 95 814 775 590 1055 1492 . 106 104 1045 984 1357 26 384 976 727 1021 973 Absorbed by Shields 2317 | . . . . 229 289 522 768 . . . . . 425 . . . . 84 . Redirected to Core 11215 | 355 336 95 618 621 455 867 1289 . 91 74 860 834 1210 17 340 814 668 848 823 Ignored by Resistances 42 | . . . . 42 . . . . . . . . . . . . . . . Regen/Repaired (Parts) 674 | . 79 . . . . 83 13 . . . . . 463 23 13 . . . . Core Remaining (%) 70 | 59 . . 69 . . 100 . . . . . 88 . . . 89 . 17 . Volleys Fired 1210 | 37 103 29 102 110 79 116 118 13 7 20 71 87 79 3 18 87 46 51 34 Largest 3 | 2 2 2 2 3 3 3 3 2 3 3 3 3 3 2 3 3 3 3 3 Hottest 130 | 100 100 100 100 106 100 100 125 70 125 125 130 130 130 70 130 130 130 130 130 Shots Fired 2892 | 69 156 48 166 302 164 301 327 20 18 60 197 228 199 6 46 239 138 117 91 Gun 2808 | 64 131 47 128 300 160 300 323 20 18 60 197 228 199 6 46 239 138 114 90 Cannon 8 | . 8 . . . . . . . . . . . . . . . . . . Launcher 19 | . 4 . . 2 4 1 4 . . . . . . . . . . 3 1 Special 57 | 5 13 1 38 . . . . . . . . . . . . . . . . Kinetic 1825 | . 39 19 64 224 104 209 228 20 14 40 142 141 158 6 36 154 92 69 66 Thermal 132 | 5 43 1 38 17 . . 28 . . . . . . . . . . . . Explosive 4 | . 4 . . . . . . . . . . . . . . . . . . Electromagnetic 931 | 64 70 28 64 61 60 92 71 . 4 20 55 87 41 . 10 85 46 48 25 Robot Hit Streak 23 | 10 14 6 16 11 13 22 20 8 10 23 13 22 21 13 12 13 8 10 22 Robot Miss Streak 9 | 4 4 3 4 6 3 9 4 1 2 2 5 5 3 1 3 3 3 7 3 Penetration Max 1 | . . . . . . . . . . 1 1 1 1 1 1 1 1 1 1 Secondary Targets 68 | . 2 . 1 4 8 10 6 . 1 . 3 11 3 . 2 4 7 3 3 Max Gunslinging Chain 2 | . 1 . 1 2 1 2 1 . 1 . 1 2 1 . 1 2 1 1 1 Shots Hit Robots 1845 | 40 91 23 96 172 106 198 242 11 15 41 149 143 148 5 37 118 83 67 60 Core Hits 811 | 14 41 11 36 71 40 83 101 2 6 22 64 75 58 3 14 53 46 38 33 Critical Kills 52 | . 1 . 1 . . . 2 . 2 2 5 10 6 . 2 5 7 3 6 Critical Parts Destroyed 76 | . . 1 . . 2 1 1 . . 4 15 13 9 . 2 12 8 4 4 Critical Strikes 154 | . 4 1 5 1 6 3 6 1 2 6 22 26 17 . 4 17 15 7 11 Burn 2 | . 1 . . . . . 1 . . . . . . . . . . . . Meltdown 1 | . 1 . . . . . . . . . . . . . . . . . . Destroy 125 | . . 1 1 . 2 1 4 1 2 6 16 24 14 . 4 17 15 7 10 Corrupt 18 | . 2 . 4 1 4 2 . . . . . 2 2 . . . . . 1 Smash 6 | . . . . . . . . . . . 5 . 1 . . . . . . Sever 1 | . . . . . . . . . . . 1 . . . . . . . . Impale 1 | . . . . . . . 1 . . . . . . . . . . . . Melee Attacks 125 | . . . . . . 10 22 . 6 . 39 4 22 . 8 4 . . 10 Impact 41 | . . . . . . . . . . . 17 . 17 . 2 1 . . 4 Slashing 18 | . . . . . . . . . . . 18 . . . . . . . . Piercing 5 | . . . . . . . 5 . . . . . . . . . . . . Sneak Attacks 53 | . . . . . . 8 12 . 2 . 4 3 9 . 6 3 . . 6 Combat Hostiles 1 | . . . . . . . . . . . . . . . . . . . 1 Follow-up Attacks . | . . . . . . . . . . . . . . . . . . . . Damage Inflicted 47287 | 471 1827 512 1515 3139 2334 3862 4789 382 304 920 5978 4658 4674 186 1040 3728 2756 2354 1858 Guns 39583 | 429 1345 352 1358 2777 1983 3400 4036 382 304 920 3598 4094 3644 186 1040 3605 2666 1975 1489 Cannons 106 | . 106 . . . . . . . . . . . . . . . . . . Explosions 5287 | 42 376 160 157 361 351 462 696 . . . 1098 564 327 . . 47 90 379 177 Melee 2309 | . . . . . . . 57 . . . 1281 . 703 . . 76 . . 192 Ramming 2 | . . . . 1 . . . . . . 1 . . . . . . . . Kinetic 27397 | . 337 146 708 1852 1499 2139 2863 382 244 744 2694 2691 2940 186 884 2570 2071 1467 980 Thermal 4816 | 42 594 160 157 432 178 348 898 . . . 941 564 327 . . 47 90 . 38 Explosive 370 | . 166 . . . . 47 . . . . 157 . . . . . . . . Electromagnetic 12393 | 429 730 206 650 854 657 1328 971 . 60 176 904 1403 704 . 156 1035 595 887 648 Impact 1898 | . . . . . . . . . . . 927 . 703 . . 76 . . 192 Slashing 354 | . . . . . . . . . . . 354 . . . . . . . . Piercing 57 | . . . . . . . 57 . . . . . . . . . . . . Highest Corruption 11 | . . . . . 2 1 1 11 11 3 3 1 4 1 1 1 1 1 . Average Corruption 1 | . . . . . 1 1 1 6 4 3 1 1 1 1 1 1 1 1 . Corruption Purged 22 | . . . . . 3 1 2 . 8 . 3 . 4 . 1 . . . . Corruption Blocked . | . . . . . . . . . . . . . . . . . . . . Effects 71 | . . . . . . . 3 2 13 10 2 7 19 2 3 3 3 4 . Message Errors 17 | . . . . . . . . . 4 2 2 2 4 . . 2 . 1 . Matter Fused 19 | . . . . . . . . 1 3 5 . 1 5 1 1 1 1 . . Heat Flow Errors 7 | . . . . . . . . . 1 1 . . 3 1 . . . 1 . Energy Discharges 6 | . . . . . . . 1 1 1 . . . 2 . 1 . . . . Parts Rejected 1 | . . . . . . . . . . . . . 1 . . . . . . Data Loss (minor) 9 | . . . . . . . . . 2 2 . 2 3 . . . . . . Data Loss (major) 3 | . . . . . . . . . 1 . . 1 . . . . 1 . . Misfires 2 | . . . . . . . 1 . . . . 1 . . . . . . . Alerts 3 | . . . . . . . . . 1 . . . . . . . 1 1 . Weapon Failures 4 | . . . . . . . 1 . . . . . 1 . 1 . . 1 . Overload Shots . | . . . . . . . . . . . . . . . . . . . . Overflow Damage 1524 | . . 25 . . 4 15 53 . . . 786 . 467 . . . 50 4 120 Projectiles . | . . . . . . . . . . . . . . . . . . . . Explosions 383 | . . 25 . . 4 15 24 . . . 253 . . . . . 50 4 8 Melee 1141 | . . . . . . . 29 . . . 533 . 467 . . . . . 112 Knockbacks 7 | . . . . . . . . . . . 3 . 3 . . 1 . . . Impact 7 | . . . . . . . . . . . 3 . 3 . . 1 . . . Kinetic . | . . . . . . . . . . . . . . . . . . . . Secondary . | . . . . . . . . . . . . . . . . . . . . Self-Inflicted Damage 967 | . 40 . 38 138 . 192 255 . . . 78 106 . . . 43 42 . 35 Shots 21 | . 1 . 1 3 . 4 5 . . . 2 2 . . . 1 1 . 1 Rammed 2 | . . . . 1 . . . . . . 1 . . . . . . . . Targets Rammed 2 | . . . . 1 . . . . . . 1 . . . . . . . . Kicked . | . . . . . . . . . . . . . . . . . . . . Crushed . | . . . . . . . . . . . . . . . . . . . . Highest Temperature 294 | 126 294 5 2 270 266 97 192 . 177 212 102 81 253 90 39 116 269 241 24 Average Temperature 46 | 52 86 2 2 58 78 32 50 . 67 31 29 25 26 54 16 30 66 94 24 Received Heat Transfer 4210 | . 303 78 459 304 253 346 510 . 90 . 273 249 192 . 162 369 270 243 109 Effects 3 | . . . . 3 . . . . . . . . . . . . . . . Interference 3 | . . . . 3 . . . . . . . . . . . . . . . Siege Activations . | . . . . . . . . . . . . . . . . . . . . Robots Corrupted 5 | 1 . . . . . . 1 . . . . 1 1 . . . . 1 . Combat Hostiles 4 | 1 . . . . . . 1 . . . . . 1 . . . . 1 . Parts Fried 58 | . 1 . 2 1 1 2 2 . . 1 10 7 17 . . 3 2 4 5 Impact Corruptions 25 | . . . . . . . . . . . 11 . 10 . . . . . 4 Robots Melted 1 | . 1 . . . . . . . . . . . . . . . . . . Combat Hostiles 1 | . 1 . . . . . . . . . . . . . . . . . . Parts Melted 8 | . 2 . 2 . 1 . 2 . . . 1 . . . . . . . . Heat Transferred 5559 | . 1038 150 200 583 200 300 1388 . . . 650 700 200 . . 50 50 . 50 Parts Sabotaged . | . . . . . . . . . . . . . . . . . . . . Parts Stolen . | . . . . . . . . . . . . . . . . . . . . Parts Stripped . | . . . . . . . . . . . . . . . . . . . . Power Chain Reactions 33 | 1 5 . 2 3 4 6 5 . . . 2 2 1 . . 1 . . 1 Alert | -11 -10 -10 -10 -8 -8 -8 -7 -7 -7 -7 -7 -7 -6 -6 -6 -6 -5 -5 -4 ------- Run | Yrd Mat Min Sub Mat Gar Mat Fac Was Fac Gar Fac Gar Fac Was Fac Gar Fac Gar Fac Peak Influence 1098 | 15 448 264 . 825 1062 681 782 170 150 282 644 1098 513 80 828 1001 611 950 781 Initial 546 | . . 87 . 288 312 449 117 115 91 93 147 253 463 52 56 546 525 427 498 Average 274 | . 215 147 . 615 781 336 339 137 104 250 208 707 170 72 376 792 246 737 637 Maximum Alert Level 3 | . 2 1 . 3 3 2 3 . . 1 2 3 2 . 3 3 2 3 3 Low Security (%) 49 | 100 42 73 . . . 21 18 100 100 19 47 . 69 100 30 . 48 . . Level 1 23 | . 52 26 . 5 7 36 60 . . 80 47 11 23 . 30 . 27 . . Level 2 15 | . 4 . . 63 18 42 14 . . . 5 28 7 . 26 28 24 45 58 Level 3 11 | . . . . 31 74 . 7 . . . . 60 . . 12 71 . 54 40 Level 4 . | . . . . . . . . . . . . . . . . . . . . Level 5 . | . . . . . . . . . . . . . . . . . . . . High Security . | . . . . . . . . . . . . . . . . . . . . Max Security . | . . . . . . . . . . . . . . . . . . . . Squads Dispatched 99 | . 7 . . 10 . 7 14 . 5 . 16 . 18 . 11 . 4 . 7 Investigation 44 | . 5 . . 5 . 2 3 . 3 . 8 . 6 . 5 . 3 . 4 Extermination 15 | . . . . . . . 3 . 1 . 4 . 5 . 1 . . . 1 Reinforcement 27 | . 2 . . 4 . 5 4 . 1 . 4 . 4 . . . 1 . 2 Assault 4 | . . . . 1 . . 1 . . . . . . . 2 . . . . Garrison 9 | . . . . . . . 3 . . . . . 3 . 3 . . . . Intercept . | . . . . . . . . . . . . . . . . . . . . Searches Triggered . | . . . . . . . . . . . . . . . . . . . . Construction Impeded 2 | . . . . . . . 1 . . . . . 1 . . . . . . Haulers Reinforced 1 | . . . . . . . . . . . . . . . . . 1 . . Active Scanning Responses . | . . . . . . . . . . . . . . . . . . . . Cargo Convoy Interrupts 3 | . . . . . . . 1 . . . 1 . . . 1 . . . . Stealth | -11 -10 -10 -10 -8 -8 -8 -7 -7 -7 -7 -7 -7 -6 -6 -6 -6 -5 -5 -4 --------- Run | Yrd Mat Min Sub Mat Gar Mat Fac Was Fac Gar Fac Gar Fac Was Fac Gar Fac Gar Fac Distress Signals 20 | . 2 . . 2 . 7 1 . . . 3 . . . 3 . 1 . 1 Communications Jammed . | . . . . . . . . . . . . . . . . . . . . Distress Signals . | . . . . . . . . . . . . . . . . . . . . Times Spotted 646 | 8 31 9 60 55 28 63 67 5 8 . 56 45 42 6 37 26 36 26 38 Peak Tracking Total 13 | 3 3 2 6 7 7 5 8 2 3 . 5 8 6 4 8 8 7 9 13 Tactical Retreats 57 | 3 . 2 7 7 1 5 10 . . . 3 5 1 . 3 3 2 1 4 Traps | -11 -10 -10 -10 -8 -8 -8 -7 -7 -7 -7 -7 -7 -6 -6 -6 -6 -5 -5 -4 ------- Run | Yrd Mat Min Sub Mat Gar Mat Fac Was Fac Gar Fac Gar Fac Was Fac Gar Fac Gar Fac Traps Triggered 46 | . 3 . 2 . 5 2 3 . 3 3 . 7 2 . 3 4 2 5 2 Indirectly 3 | . . . . . 3 . . . . . . . . . . . . . . Trap Hack Attempts 56 | . . . . . . 13 29 . . . 6 6 2 . . . . . . Triggered 2 | . . . . . . . 1 . . . 1 . . . . . . . . Disarmed 6 | . . . . . . 1 1 . . . . 2 2 . . . . . . Reprogrammed 18 | . . . . . . 3 11 . . . 2 2 . . . . . . . Reused 8 | . . . . . . 2 4 . . . 2 . . . . . . . . Traps Extracted 10 | . . . . . . 2 7 . . . 1 . . . . . . . . Installed 11 | . . . . . . 2 7 . . . 2 . . . . . . . . Triggered 10 | . . . . . . 2 5 . . . 2 1 . . . . . . . Most Traps Carried 5 | . . . . . . 2 5 . . 4 4 3 3 3 3 3 3 3 3 Objects Rigged 5 | . . . . . . . . . . . . . . . . . . . 5 Machines | -11 -10 -10 -10 -8 -8 -8 -7 -7 -7 -7 -7 -7 -6 -6 -6 -6 -5 -5 -4 ---------- Run | Yrd Mat Min Sub Mat Gar Mat Fac Was Fac Gar Fac Gar Fac Was Fac Gar Fac Gar Fac Machines Disabled 85 | . 7 6 2 7 3 2 5 . 2 1 16 7 8 . 3 9 4 2 1 Max in Single Turn 12 | . 1 2 1 2 1 1 2 . 2 1 12 2 1 . 1 1 3 1 1 Garrison Access 3 | . . . . . . . 1 . . . . . 2 . . . . . . Garrison Relay 13 | . . . . . 4 . . . . . . 3 . . . 4 . 2 . Phase Generator 2 | . . . . . . . . . . 1 . 1 . . . . . . . Machines Repaired . | . . . . . . . . . . . . . . . . . . . . Machines Dismantled . | . . . . . . . . . . . . . . . . . . . . Machines Sabotaged . | . . . . . . . . . . . . . . . . . . . . Overloaded Fab Kills . | . . . . . . . . . . . . . . . . . . . . Hacking | -11 -10 -10 -10 -8 -8 -8 -7 -7 -7 -7 -7 -7 -6 -6 -6 -6 -5 -5 -4 --------- Run | Yrd Mat Min Sub Mat Gar Mat Fac Was Fac Gar Fac Gar Fac Was Fac Gar Fac Gar Fac Machines Accessed 137 | . 8 . 2 16 3 16 16 . 9 3 25 2 19 . 5 1 6 1 5 Terminals 79 | . 5 . . 10 3 10 7 . 5 3 13 2 11 . 2 1 3 1 3 Fabricators 18 | . . . . . . . 3 . 2 . 5 . 3 . 2 . 2 . 1 Repair Stations 7 | . 1 . . 1 . 2 1 . . . 1 . 1 . . . . . . Recycling Units 14 | . 2 . . 2 . 2 3 . 1 . 3 . 1 . . . . . . Scanalyzers 6 | . . . . 2 . 2 . . . . 1 . . . . . . . 1 Garrison Access 11 | . . . . 1 . . 2 . 1 . 2 . 3 . 1 . 1 . . Total Hacks 501 | . 32 . 2 81 11 77 45 . 29 7 84 7 61 . 15 2 27 1 20 Successful 403 | . 17 . 2 54 7 69 41 . 22 5 76 5 58 . 9 1 20 1 16 Failed 94 | . 14 . . 27 4 8 4 . 7 2 7 2 2 . 6 1 7 . 3 Catastrophic 9 | . 2 . . 3 1 2 . . . . . . . . 1 . . . . Database Lockouts 4 | . 1 . . . . . . . . . 1 . 1 . . . . . 1 Manual 274 | . 14 . . 55 8 40 26 . 20 3 42 5 33 . 11 . 8 . 9 Terminals 318 | . 22 . . 58 11 49 24 . 13 7 48 7 40 . 6 2 17 1 13 Fabricators 53 | . . . . . . . 4 . 7 . 14 . 8 . 6 . 9 . 5 Repair Stations 18 | . 3 . . 2 . 6 2 . . . 1 . 4 . . . . . . Recycling Units 50 | . 7 . . 7 . 7 10 . 4 . 10 . 5 . . . . . . Scanalyzers 32 | . . . . 9 . 15 . . . . 6 . . . . . . . 2 Garrison Access 28 | . . . . 5 . . 5 . 5 . 5 . 4 . 3 . 1 . . Terminal Hacks 165 | . 10 . 2 23 5 24 12 . 5 4 30 5 27 . . 1 9 1 7 Record 1 | . . . 1 . . . . . . . . . . . . . . . . Part Schematic 21 | . . . . 3 . . 1 . . 1 10 . 5 . . . . . 1 Robot Schematic 3 | . 1 . . . . 1 . . . . 1 . . . . . . . . Robot Analysis 9 | . 3 . . 2 . 1 1 . . . 1 . 1 . . . . . . Prototype ID Bank 24 | . 4 . . 4 . 5 1 . . . 5 . 4 . . . 1 . . Open Door 3 | . . . . . . . . . . 1 . 1 1 . . . . . . Open DSF 1 | . . . . . . . 1 . . . . . . . . . . . . Level Access Points 3 | . . . . . . 1 . . . . 1 . 1 . . . . . . Branch Access Points 9 | . . . . 2 . 1 1 . 1 . 1 . 1 . . . 1 . 1 Emergency Access Points 8 | . . . . 1 1 1 . . . 1 . 1 1 . . 1 . 1 . Machine Index 7 | . . . . 1 . 1 1 . 1 . 1 . 1 . . . . . 1 Terminal Index 3 | . . . . . . 1 . . 1 . . . . . . . 1 . . Fabricator Index 1 | . . . . . . . . . . . . . . . . . 1 . . Scanalyzer Index 1 | . . . . . . . . . . . . . . . . . 1 . . Garrison Index 2 | . . . . . . . . . 1 . . . . . . . 1 . . Unreport Threat 27 | . . . . 5 2 4 . . . . 3 3 4 . . . 3 . 3 Locate Traps 12 | . 2 . . 1 . 1 2 . 1 . 2 . 2 . . . . . 1 Reprogram Traps 1 | . . . . . . . 1 . . . . . . . . . . . . Recall Investigation 1 | . . . . . . . . . . . . . 1 . . . . . . Recall Extermination 2 | . . . . . . . . . . . . . 2 . . . . . . Recall Reinforcements 1 | . . . . . . . 1 . . . . . . . . . . . . Recall Assault 1 | . . . . 1 . . . . . . . . . . . . . . . Hauler Manifests 3 | . . . . . . 1 1 . . . 1 . . . . . . . . Registered Components 2 | . . . . . . 1 . . . . 1 . . . . . . . . Registered Prototypes 2 | . . . . . . . 1 . . . . . 1 . . . . . . Zone Layout 13 | . . . . 3 . 5 . . . . 3 . 2 . . . . . . Garrison Registry 1 | . . . . . 1 . . . . . . . . . . . . . . Security Stations 2 | . . . . . 1 . . . . 1 . . . . . . . . . Derelict Proto ID Bank 1 | . . . 1 . . . . . . . . . . . . . . . . Fabricator Hacks 32 | . . . . . . . 1 . 4 . 10 . 5 . 3 . 5 . 4 Load Schematic 16 | . . . . . . . 1 . 2 . 5 . 3 . 1 . 2 . 2 Build 16 | . . . . . . . . . 2 . 5 . 2 . 2 . 3 . 2 Repair Station Hacks 15 | . 2 . . 2 . 6 2 . . . . . 3 . . . . . . Scan Component 8 | . 1 . . 1 . 3 1 . . . . . 2 . . . . . . Repair 7 | . 1 . . 1 . 3 1 . . . . . 1 . . . . . . Recycling Unit Hacks 16 | . 2 . . 2 . 3 3 . 1 . 3 . 2 . . . . . . Report Inventory 4 | . 1 . . . . 1 . . . . 1 . 1 . . . . . . Retrieve Components 12 | . 1 . . 2 . 2 3 . 1 . 2 . 1 . . . . . . Scanalyzer 32 | . . . . 9 . 15 . . . . 6 . . . . . . . 2 Insert Component 16 | . . . . 5 . 7 . . . . 3 . . . . . . . 1 Analyze 16 | . . . . 4 . 8 . . . . 3 . . . . . . . 1 Garrison Access Hacks 11 | . . . . 1 . . 2 . 1 . 2 . 3 . 1 . 1 . . Unlock Access 8 | . . . . 1 . . 1 . 1 . 2 . 1 . 1 . 1 . . Seal Access 3 | . . . . . . . 1 . . . . . 2 . . . . . . Unauthorized Hacks 132 | . 3 . . 17 2 21 21 . 11 1 25 . 18 . 5 . 5 . 3 Terminals 70 | . 1 . . 11 2 17 8 . 4 1 11 . 11 . . . 2 . 2 Track 21 | . . . . 4 1 5 3 . 1 . 3 . 4 . . . . . . Assimilate 5 | . . . . . . 1 . . . . 3 . 1 . . . . . . Botnet 32 | . 1 . . 5 1 8 4 . 2 1 4 . 5 . . . 1 . . Detonate 1 | . . . . . . . . . . . . . . . . . . . 1 Disrupt 3 | . . . . 1 . 2 . . . . . . . . . . . . . Operators 7 | . . . . 1 . 1 1 . 1 . 1 . 1 . . . 1 . . Sabotage 1 | . . . . . . . . . . . . . . . . . . . 1 Fabricators 18 | . . . . . . . 3 . 2 . 3 . 3 . 3 . 3 . 1 Report 1 | . . . . . . . 1 . . . . . . . . . . . . Prioritize 8 | . . . . . . . . . 1 . 3 . . . 2 . 1 . 1 Liberate 1 | . . . . . . . . . . . . . . . . . 1 . . Haulers 5 | . . . . . . . 1 . . . . . 2 . 1 . 1 . . Recompile 3 | . . . . . . . 1 . 1 . . . 1 . . . . . . Repair Stations 1 | . . . . . . . . . . . 1 . . . . . . . . Mechanics 1 | . . . . . . . . . . . 1 . . . . . . . . Recycling Units 30 | . 2 . . 5 . 4 7 . 2 . 7 . 3 . . . . . . Reject 11 | . . . . 2 . 2 2 . 1 . 3 . 1 . . . . . . Recyclers 4 | . . . . . . . 2 . . . 1 . 1 . . . . . . Mask 11 | . 1 . . 1 . 1 3 . 1 . 3 . 1 . . . . . . Tunnel 4 | . 1 . . 2 . 1 . . . . . . . . . . . . . Scanalyzers . | . . . . . . . . . . . . . . . . . . . . Garrison Access 13 | . . . . 1 . . 3 . 3 . 3 . 1 . 2 . . . . Broadcast 2 | . . . . . . . 1 . 1 . . . . . . . . . . Redirect 1 | . . . . . . . . . 1 . . . . . . . . . . Reprogram 6 | . . . . 1 . . 1 . . . 2 . 1 . 1 . . . . Intercept 1 | . . . . . . . . . . . 1 . . . . . . . . Watchers 3 | . . . . . . . 1 . 1 . . . . . 1 . . . . Data Cores Recovered 3 | . . . . . . . . . . . 2 . . . 1 . . . . Used 1 | . . . . . . . . . . . 1 . . . . . . . . Hacking Detections 102 | . 8 . . 13 3 9 10 . 9 2 20 1 12 . 4 1 5 1 4 Full Trace Events 25 | . 3 . . 4 . . . . 1 . 7 . 3 . 3 . 2 . 2 Feedback Events 3 | . . . . . . . . . . . . . 1 . 2 . . . . Hackware Fried 3 | . . . . . . . . . . . . . 1 . 2 . . . . Feedback Blocked . | . . . . . . . . . . . . . . . . . . . . Robot Schematics Acquired 3 | . 1 . . . . 1 . . . . 1 . . . . . . . . Robots Built 2 | . . . . . . . . . . . . . 1 . . . 1 . . Authchips . | . . . . . . . . . . . . . . . . . . . . Time 121 | . . . . . . . . . . . . . 40 . . . 81 . . Total Robot Build Rating 2 | . . . . . . . . . . . . . 1 . . . 1 . . Part Schematics Acquired 36 | . . . . 7 . 7 1 . . 1 13 . 5 . . . . . 2 Parts Built 15 | . . . . . . . . . 4 . 4 . 1 . 2 . 2 . 2 Authchips 2 | . . . . . . . . . 1 . . . . . . . . . 1 Time 684 | . . . . . . . . . 89 . 220 . 35 . 170 . 66 . 104 Total Part Build Rating 83 | . . . . . . . . . 18 . 24 . 6 . 13 . 8 . 14 Parts Repaired 7 | . 1 . . 1 . 3 1 . . . . . 1 . . . . . . Time 313 | . 50 . . 70 . 123 44 . . . . . 26 . . . . . . Parts Recycled . | . . . . . . . . . . . . . . . . . . . . Recycled Matter . | . . . . . . . . . . . . . . . . . . . . Retrieved Matter . | . . . . . . . . . . . . . . . . . . . . Retrieved Components 67 | . 3 . . 11 . 13 18 . 5 . 14 . 3 . . . . . . Parts Scanalyzed 15 | . . . . 4 . 7 . . . . 3 . . . . . . . 1 Part Schematics Acquired 15 | . . . . 4 . 7 . . . . 3 . . . . . . . 1 Parts Damaged 2 | . . . . 1 . 1 . . . . . . . . . . . . . Bothacking | -11 -10 -10 -10 -8 -8 -8 -7 -7 -7 -7 -7 -7 -6 -6 -6 -6 -5 -5 -4 ------------ Run | Yrd Mat Min Sub Mat Gar Mat Fac Was Fac Gar Fac Gar Fac Was Fac Gar Fac Gar Fac Used RIF Installer 7 | . . . . . 2 . . . . 2 . 1 . . . 1 . 1 . Coupler Efficiency 2 | . . . . . . . . . . 1 . . . . . . . 1 . Code Merge 1 | . . . . . . . . . . . . 1 . . . . . . . Threat Obfuscator 1 | . . . . . 1 . . . . . . . . . . . . . . Watcher Feeds 1 | . . . . . . . . . . 1 . . . . . . . . . Autoassimilate 1 | . . . . . . . . . . . . . . . . 1 . . . Robots Hacked 35 | . . . . . . 6 9 . 2 . 2 1 4 . 6 1 . . 4 Non-combat 34 | . . . . . . 6 9 . 2 . 2 . 4 . 6 1 . . 4 Combat 1 | . . . . . . . . . . . . 1 . . . . . . . Robot Hacks Applied 48 | . . . . . . 8 16 . 2 . 2 1 5 . 6 3 . . 5 parse_system 3 | . . . . . . . 1 . . . . 1 . . 1 . . . . no_distress 1 | . . . . . . . . . . . . . . . 1 . . . . find_chute 6 | . . . . . . . 3 . . . . . 1 . . . . . 2 map_walls 1 | . . . . . . 1 . . . . . . . . . . . . . map_earth 2 | . . . . . . 1 . . . . . . . . 1 . . . . find_fabricator 1 | . . . . . . . . . . . . . 1 . . . . . . drop_inventory 7 | . . . . . . 2 1 . . . . . 1 . 2 . . . 1 find_recycling 4 | . . . . . . 1 . . 1 . . . . . 1 . . . 1 ignore_parts 1 | . . . . . . . 1 . . . . . . . . . . . . find_station 1 | . . . . . . . 1 . . . . . . . . . . . . purge_threat 13 | . . . . . . 3 6 . . . 1 . . . . 3 . . . locate_traps 1 | . . . . . . . 1 . . . . . . . . . . . . map_route 2 | . . . . . . . 1 . 1 . . . . . . . . . . mark_security 1 | . . . . . . . . . . . 1 . . . . . . . . amplify_resonance 1 | . . . . . . . . . . . . . . . . . . . 1 streamctrl_low 1 | . . . . . . . . . . . . . 1 . . . . . . formatsys_low 2 | . . . . . . . 1 . . . . . 1 . . . . . . Relay Couplers Released 20 | . . . . . 7 . . . . . . 4 . . . 7 . 2 . Machine Destruction 20 | . . . . . 7 . . . . . . 4 . . . 7 . 2 . Attached 5 | . . . . . 1 . 1 . . . . 1 . . . 1 . 1 . Merged Code Value 53 | . . . . . . . . . . . . . . . . 23 . 30 . Fabnet Peak Effective % . | . . . . . . . . . . . . . . . . . . . . Robots Rewired 9 | . . . . . . . . . . 5 . 3 . . . . . . 1 Allies Hacked 4 | . . . . . . . . . . . 4 . . . . . . . . Hacks Repelled . | . . . . . . . . . . . . . . . . . . . . Allies | -11 -10 -10 -10 -8 -8 -8 -7 -7 -7 -7 -7 -7 -6 -6 -6 -6 -5 -5 -4 -------- Run | Yrd Mat Min Sub Mat Gar Mat Fac Was Fac Gar Fac Gar Fac Was Fac Gar Fac Gar Fac Total Allies 76 | . . . 2 3 2 1 5 19 . 5 5 7 5 19 1 . 1 . 1 Largest Group 19 | . . . 2 3 2 1 4 19 . 5 6 6 5 19 15 . 1 . 1 Highest-Rated Group 669 | . . . 38 75 56 10 114 475 . 132 158 269 166 669 581 . 6 . 42 Highest-Rated Ally 95 | . . . 19 25 31 10 31 35 . 39 39 95 95 50 50 . 6 . 42 Total Orders 8 | . . . . . . 2 1 . . . 2 . 3 . . . . . . STAY 4 | . . . . . . 1 1 . . . 1 . 1 . . . . . . FOLLOW 2 | . . . . . . 1 . . . . 1 . . . . . . . . AID 2 | . . . . . . . . . . . . . 2 . . . . . . Ally Attacks 538 | . . . 7 17 33 . 38 141 . . 50 35 10 81 122 . . . 4 Total Damage 16268 | . . . 125 608 570 . 629 3954 . . 878 719 394 4064 4208 . . . 119 Kills 84 | . . . 3 4 6 . 6 8 . . 9 7 2 9 30 . . . . Allies Corrupted 1 | . . . . . . 1 . . . . . . . . . . . . . Allies Melted . | . . . . . . . . . . . . . . . . . . . . Intel | -11 -10 -10 -10 -8 -8 -8 -7 -7 -7 -7 -7 -7 -6 -6 -6 -6 -5 -5 -4 ------- Run | Yrd Mat Min Sub Mat Gar Mat Fac Was Fac Gar Fac Gar Fac Was Fac Gar Fac Gar Fac Robot Analysis Total 9 | . 3 . . 2 . 1 1 . . . 1 . 1 . . . . . . Derelict Logs Recovered 4 | . . 2 2 . . . . . . . . . . . . . . . . Drone Launches . | . . . . . . . . . . . . . . . . . . . . Drone Recoveries . | . . . . . . . . . . . . . . . . . . . . Exploration | -11 -10 -10 -10 -8 -8 -8 -7 -7 -7 -7 -7 -7 -6 -6 -6 -6 -5 -5 -4 ------------- Run | Yrd Mat Min Sub Mat Gar Mat Fac Was Fac Gar Fac Gar Fac Was Fac Gar Fac Gar Fac Turns Passed 30440 | 5643 2148 708 2798 1600 703 1772 2046 138 656 577 2486 1098 4204 221 1032 849 760 483 518 Spaces Moved 20303 | 291 1146 663 2413 1479 687 1424 1572 164 858 842 2299 1178 1621 258 1041 819 517 486 545 Core 6 | 6 . . . . . . . . . . . . . . . . . . . Treads 5 | 5 . . . . . . . . . . . . . . . . . . . Legs . | . . . . . . . . . . . . . . . . . . . . Wheels 1000 | 280 720 . . . . . . . . . . . . . . . . . . Hover 19292 | . 426 663 2413 1479 687 1424 1572 164 858 842 2299 1178 1621 258 1041 819 517 486 545 Flight . | . . . . . . . . . . . . . . . . . . . . Fastest Speed 42 | 50 77 77 77 66 65 65 48 48 48 48 48 48 48 52 52 52 52 52 42 Average Speed 60 | 92 88 77 77 67 65 65 63 48 48 48 48 48 56 52 52 52 52 52 47 Slowest Speed 160 | 160 150 77 77 77 66 131 65 48 48 48 48 48 108 52 52 52 52 52 96 Overloaded Moves . | . . . . . . . . . . . . . . . . . . . . Propulsion Burnouts . | . . . . . . . . . . . . . . . . . . . . Robots Hopped . | . . . . . . . . . . . . . . . . . . . . Cave-ins Triggered . | . . . . . . . . . . . . . . . . . . . . Exploration Rate (%) 67 | 35 98 99 96 98 74 97 29 83 23 96 63 97 48 87 30 92 19 55 25 Regions Visited 19 Branch Regions 2 Pre-discovered Areas 7 | . 1 2 1 2 . 1 . . . . . . . . . . . . . Known Exits Taken 6 | . . . . 1 . 1 . . 1 . 1 . . . 1 . 1 . . Unknown Exits Taken 4 | 1 1 1 1 . . . . . . . . . . . . . . . . Scrap Searched 15 | . . 3 12 . . . . . . . . . . . . . . . . Spaces Dug 33 | . 2 . 1 . 2 . 3 1 . . 7 . 8 . 2 2 . . 5 Terrain Destroyed 749 | 6 38 43 2 33 3 42 46 2 33 80 103 104 54 2 7 34 80 3 34 Melee 22 | . . . . . . . 3 . . . 7 . 8 . 2 . . . 2 Projectile 226 | . 6 . 1 . . . 3 2 6 15 47 12 43 2 5 22 35 3 24 AOE 500 | 6 32 43 1 33 3 42 40 . 27 65 49 91 3 . . 12 45 . 8 Terrain Rammed . | . . . . . . . . . . . . . . . . . . . . Walls Destroyed . | . . . . . . . . . . . . . . . . . . . . Machines Disabled . | . . . . . . . . . . . . . . . . . . . . Actions | -11 -10 -10 -10 -8 -8 -8 -7 -7 -7 -7 -7 -7 -6 -6 -6 -6 -5 -5 -4 --------- Run | Yrd Mat Min Sub Mat Gar Mat Fac Was Fac Gar Fac Gar Fac Was Fac Gar Fac Gar Fac Total 36026 | 5582 2102 813 3123 1914 841 2106 2448 202 1085 969 3469 1534 4714 338 1487 1056 904 620 719 Wait 13034 | 5232 778 103 552 213 33 421 542 11 198 78 965 132 2913 61 355 53 293 14 87 Move 20285 | 290 1145 662 2412 1478 686 1423 1572 163 857 841 2298 1176 1621 257 1040 818 516 485 545 Hop . | . . . . . . . . . . . . . . . . . . . . Pick Up 57 | 4 6 1 4 6 3 8 17 . 2 1 2 . 2 . . . 1 . . Fast Attach 117 | 7 10 1 4 23 5 7 17 . 3 . 9 4 8 . 8 1 2 2 6 Attach 22 | . . 1 . 5 . 4 2 . 1 1 4 . 2 . . . . . 2 Detach 11 | . . . . 2 . 3 . . . . 4 . 1 . . . . . 1 Swap 81 | 3 7 2 . 2 5 12 16 1 2 1 10 1 9 . 2 1 . 2 5 Drop 121 | 2 16 1 7 17 4 7 31 . 2 1 9 4 7 . 6 . 2 1 4 Fire 1210 | 37 103 29 102 110 79 116 118 13 7 20 71 87 79 3 18 87 46 51 34 Melee 125 | . . . . . . 10 22 . 6 . 39 4 22 . 8 4 . . 10 Ram 2 | . . . . 1 . . . . . . 1 . . . . . . . . Kick . | . . . . . . . . . . . . . . . . . . . . Crush . | . . . . . . . . . . . . . . . . . . . . Escape Stasis 162 | . . . . . 7 . . . 7 . . 67 . . 13 26 . 42 . Rewire 12 | . . . . . . . . . . 12 . . . . . . . . . Trap 67 | . . . . . . 15 36 . . . 8 6 2 . . . . . . Miscellaneous 720 | 7 37 13 42 57 19 80 75 14 . 14 49 53 48 17 37 66 44 23 25 Route ------- -11/Scrapyard -10/Materials (discovered 5 exits: [*Mat x3] / [*Min] / *Sub) -10/Mines (discovered 4 exits: [*Mat x2] / [*Exi] / *Sub) -10/Subcaves (discovered 3 exits: *Mat x2 / [*Rec]) -8/Materials (discovered 4 exits: *Fac x3 / Gar) -8/Garrison (discovered 4 exits: *Mat x4) -8/Materials (discovered 3 exits: *Fac x3) -7/Factory (discovered 6 exits: *Fac x2 / *Sto / Low x2 / Gar) -7/Waste -7/Factory (discovered 5 exits: Sto x2 / Low x2 / Gar) -7/Garrison (discovered 3 exits: *Fac x3) -7/Factory (discovered 10 exits: *Fac x4 / Sto x2 / *Low x2 / Gar / Gar) -7/Garrison (discovered 4 exits: *Fac x3 / [*Fac]) -6/Factory (discovered 9 exits: *Fac x4 / *Low x2 / *Ext x2 / Gar) -6/Waste -6/Factory (discovered 5 exits: *Fac x2 / *Low / *Ext / Gar) -6/Garrison (discovered 3 exits: *Fac x3) -5/Factory (discovered 3 exits: Upp x2 / Gar) -5/Garrison (discovered 2 exits: *Fac x2) -4/Factory (discovered 3 exits: *Upp x2 / Arm) History --------- Turn | Location | Event 5 | -11/Scrapyard | Upgraded with Propulsion slot (x1) 5 | -11/Scrapyard | Upgraded with Utility slot (x1) 5 | -11/Scrapyard | Upgraded with Weapon slot (x1) 25 | -11/Scrapyard | Discovered new exit (range 16) 5329 | -11/Scrapyard | Assembled infested the area 5580 | -11/Scrapyard | Core integrity fell below 50% 5644 | -11/Scrapyard | Entered Materials 5645 | -10/Materials | Build established: Mutant 5690 | -10/Materials | Discovered new exit (range 9) 5858 | -10/Materials | Discovered new exit (range 14) 6295 | -10/Materials | Reached level 2 6298 | -10/Materials | Discovered new exit (range 15) 6301 | -10/Materials | Central database locked down 6533 | -10/Materials | Discovered new exit (range 14) 7096 | -10/Materials | Repaired Cmb. Airjet 7557 | -10/Materials | Discovered new exit (range 5) 7686 | -10/Materials | Reached level 3 7734 | -10/Materials | Upgraded with Utility slot (x1) 7792 | -10/Materials | Entered Mines 7826 | -10/Mines | Learned location of Zion (-7) 7838 | -10/Mines | Learned location of Storage (-7) 7895 | -10/Mines | Discovered new exit (range 7) 7903 | -10/Mines | Deemed a non-threat by the Exiles lab entrance 7903 | -10/Mines | Discovered new exit (range 5) 8045 | -10/Mines | Build established: Scavenger-Mutant 8079 | -10/Mines | A weapon hastily lodged in a ceiling crevice suddenly fell to the ground 8228 | -10/Mines | Reached level 4 8280 | -10/Mines | Joined a pair of Derelicts in attacking an 0b10 outpost 8288 | -10/Mines | Learned location of 2 exits from Materials 8290 | -10/Mines | Upgraded with Weapon slot (x1) 8331 | -10/Mines | Discovered new exit (range 7) 8495 | -10/Mines | Discovered new exit (range 3) 8500 | -10/Mines | Entered Subcaves 8502 | -10/Subcaves | Reached level 5 8583 | -10/Subcaves | Build established: Scavenger-Skirmisher 8607 | -10/Subcaves | Discovered new exit (range 13) 8629 | -10/Subcaves | Visited Clippyterm 8826 | -10/Subcaves | Shifting Twisted Machinery released Piercing Trap 8849 | -10/Subcaves | Shifting Twisted Machinery released Sub. Monowheel 8973 | -10/Subcaves | Discovered new exit (range 14) 9004 | -10/Subcaves | Upgraded with Utility slot (x1) 9098 | -10/Subcaves | Disturbed a concealed Subdweller 9417 | -10/Subcaves | Disturbed a concealed Subdweller 9487 | -10/Subcaves | A swath of the cavern ceiling suddenly collapsed 9691 | -10/Subcaves | Shifting Twisted Machinery released Shrapnel Trap 9704 | -10/Subcaves | Shifting Twisted Machinery released Battle Rifle 9711 | -10/Subcaves | Discovered new exit (range 13) 9972 | -10/Subcaves | Visited 4L-MR0's lab 9987 | -10/Subcaves | Found Meta Core 9988 | -10/Subcaves | Attached Meta Core, gained temporary slots: Propulsion, Utility, Weapon 10028 | -10/Subcaves | Shifting Twisted Machinery released Battle Cannon 10041 | -10/Subcaves | Shifting Twisted Machinery released Battle Rifle 10120 | -10/Subcaves | Visited triangular shrine 10125 | -10/Subcaves | Found Prototype Device 10125 | -10/Subcaves | Identified V3-11A's Pendant 10130 | -10/Subcaves | Befriended Subdweller 10898 | -10/Subcaves | Ambushed by angry Subdweller bent on revenge 10899 | -10/Subcaves | Befriended Subdweller 11298 | -10/Subcaves | Entered Materials 11298 | -8/Materials | Accompanied by 2 allies 11299 | -8/Materials | Identified exit to Factory 11300 | -8/Materials | Reached level 6 11304 | -8/Materials | Upgraded with Utility slot (x1) 11386 | -8/Materials | Reached level 7 11611 | -8/Materials | Upgraded with Utility slot (x1) 11645 | -8/Materials | Identified exit to Garrison 11706 | -8/Materials | Reached level 8 12141 | -8/Materials | Build established: Hacker-Scout 12147 | -8/Materials | Lost 3 allies 12250 | -8/Materials | Reached level 9 12344 | -8/Materials | Discovered exit to Factory (range 13) 12498 | -8/Materials | First assault squad dispatched 12537 | -8/Materials | Reached level 10 12553 | -8/Materials | Upgraded with Power slot (x1) 12553 | -8/Materials | Upgraded with Utility slot (x1) 12696 | -8/Materials | Repaired Broken Cmb. Airjet 12898 | -8/Materials | Entered Garrison 12924 | -8/Garrison | Rescued a captive Derelict 12928 | -8/Garrison | Rescued a captive Derelict 12949 | -8/Garrison | Reached level 11 12986 | -8/Garrison | Garrison Relay disabled 13018 | -8/Garrison | Discovered new exit (range 53) 13018 | -8/Garrison | Discovered new exit (range 39) 13018 | -8/Garrison | Discovered new exit (range 46) 13018 | -8/Garrison | Discovered new exit (range 53) 13038 | -8/Garrison | Upgraded with Propulsion slot (x1) 13116 | -8/Garrison | Triggered checkpoint 13140 | -8/Garrison | Installed Relay Interface Framework 13147 | -8/Garrison | Reached level 12 13208 | -8/Garrison | Triggered checkpoint 13282 | -8/Garrison | Learned Materials security intel 13318 | -8/Garrison | Triggered checkpoint 13360 | -8/Garrison | Garrison Relay disabled 13395 | -8/Garrison | Upgraded with Utility slot (x1) 13428 | -8/Garrison | Garrison Relay disabled 13458 | -8/Garrison | Garrison Relay disabled 13569 | -8/Garrison | Expanded RIF knowledge: Threat Obfuscation 13601 | -8/Garrison | Entered Materials 13655 | -8/Materials | Repaired System Restoration Module 13682 | -8/Materials | Repaired Lgt. Armor Plating 13909 | -8/Materials | Core integrity fell below 50% 13924 | -8/Materials | Core integrity fell below 20% 13968 | -8/Materials | Reached level 13 14030 | -8/Materials | Build established: Hacker-Tank 14158 | -8/Materials | Destroyed 8 combat bots 14356 | -8/Materials | Discovered exit to Factory (range 16) 14815 | -8/Materials | Build established: Wizard-Scout 15221 | -8/Materials | Repaired Broken Shock Bomb Launcher 15373 | -8/Materials | Entered Factory 15374 | -7/Factory | Identified exit to Storage 15375 | -7/Factory | Reached level 14 15413 | -7/Factory | Identified exit to Lower Caves 15665 | -7/Factory | Discovered new exit (range 9) 15796 | -7/Factory | Reached level 15 15899 | -7/Factory | Upgraded with Utility slot (x1) 16134 | -7/Factory | Destroyed 7 combat bots 16167 | -7/Factory | Identified exit to Garrison 16212 | -7/Factory | Garrison activated, responded to threat 16320 | -7/Factory | Core integrity fell below 50% 16553 | -7/Factory | Repaired Imp. Shield Generator 16573 | -7/Factory | First assault squad dispatched 16632 | -7/Factory | Reached level 16 16879 | -7/Factory | Discovered new exit (range 11) 16894 | -7/Factory | Identified exit to Factory 17114 | -7/Factory | P-60 Hacker assimilated allied Technician 4a 17263 | -7/Factory | Cargo convoy interrupted 17291 | -7/Factory | Found Prototype Launcher 17291 | -7/Factory | Identified Com. Tesla Bomb Launcher 17419 | -7/Factory | Sucked down chute 17419 | -7/Factory | Entered Waste 17434 | -7/Waste | EMP discharged 17450 | -7/Waste | Met Warlord forces unprepared to attack 17473 | -7/Waste | Spotted C-40 Crusher 17484 | -7/Waste | Allies destroyed C-40 Crusher 17495 | -7/Waste | Spotted C-40 Crusher 17501 | -7/Waste | Allies destroyed C-40 Crusher 17510 | -7/Waste | Spotted C-40 Crusher 17513 | -7/Waste | Spotted C-40 Crusher 17515 | -7/Waste | Allies destroyed C-40 Crusher 17521 | -7/Waste | Allies destroyed C-40 Crusher 17534 | -7/Waste | EMP discharged 17534 | -7/Waste | System corruption reached 10% 17547 | -7/Waste | Spotted C-40 Crusher 17550 | -7/Waste | Lost 5 allies 17551 | -7/Waste | Discovered new exit (range 13) 17557 | -7/Waste | Identified exit to Factory 17557 | -7/Waste | Entered Factory 17621 | -7/Factory | Fabricated Powered Armor (x2) 18145 | -7/Factory | Fabricated Energy Well? 18193 | -7/Factory | Identified exit to Garrison 18213 | -7/Factory | Entered Garrison 18213 | -7/Garrison | Discovered recently destroyed garrison 18298 | -7/Garrison | Discovered new exit (range 11) 18313 | -7/Garrison | Expanded RIF knowledge: Watcher Feeds 18325 | -7/Garrison | Phase Generator disabled 18390 | -7/Garrison | Expanded RIF knowledge: Coupler Efficiency 18452 | -7/Garrison | Discovered new exit (range 13) 18469 | -7/Garrison | Identified exit to Factory 18516 | -7/Garrison | Discovered exit to Factory (range 8) 18540 | -7/Garrison | Learned Factory security intel 18790 | -7/Garrison | Entered Factory 18790 | -7/Factory | Accompanied by 5 allies 18805 | -7/Factory | Discovered exit to Factory (range 24) 19004 | -7/Factory | Fabricated Adv. Hacking Suite? 19012 | -7/Factory | Reached level 17 19381 | -7/Factory | Fabricated Adv. Hacking Suite (x1) 19572 | -7/Factory | Central database locked down 19984 | -7/Factory | Cargo convoy interrupted 20051 | -7/Factory | Identified exit to Garrison 20108 | -7/Factory | Fabricated Adv. Hacking Suite? 20550 | -7/Factory | Identified exit to Garrison 21200 | -7/Factory | Fabricated Imp. Powered Armor? 21276 | -7/Factory | Entered Garrison 21280 | -7/Garrison | Triggered checkpoint 21296 | -7/Garrison | Discovered new exit (range 5) 21386 | -7/Garrison | Triggered checkpoint 21432 | -7/Garrison | Garrison Relay disabled 21532 | -7/Garrison | Triggered checkpoint 21533 | -7/Garrison | Destroyed 9 combat bots 21589 | -7/Garrison | Discovered exit to Factory (range 12) 21600 | -7/Garrison | Garrison Relay disabled 21600 | -7/Garrison | Reached level 18 21608 | -7/Garrison | Triggered checkpoint 21669 | -7/Garrison | Expanded RIF knowledge: Code Merge 21737 | -7/Garrison | Rescued a captive Derelict 21739 | -7/Garrison | Rescued a captive Derelict 21767 | -7/Garrison | Phase Generator disabled 21865 | -7/Garrison | Discovered exit to Factory (range 12) 21885 | -7/Garrison | Found embedded Infiltrators 21896 | -7/Garrison | Triggered checkpoint 21988 | -7/Garrison | Triggered checkpoint 22050 | -7/Garrison | Discovered exit to Factory (range 10) 22086 | -7/Garrison | Triggered checkpoint 22096 | -7/Garrison | Triggered checkpoint 22220 | -7/Garrison | Triggered checkpoint 22337 | -7/Garrison | Garrison Relay disabled 22374 | -7/Garrison | Entered Factory 22374 | -6/Factory | Accompanied by 4 allies 22423 | -6/Factory | Discovered new exit (range 16) 22447 | -6/Factory | Identified exit to Factory 22460 | -6/Factory | Discovered new exit (range 16) 22467 | -6/Factory | Identified exit to Lower Caves 22591 | -6/Factory | Identified exit to Extension 22745 | -6/Factory | Fabricated Adv. Salvage Targeting Computer (x1) 22800 | -6/Factory | Central database locked down 22845 | -6/Factory | Identified exit to Garrison 23176 | -6/Factory | Reached level 19 23189 | -6/Factory | Upgraded with Utility slot (x1) 23501 | -6/Factory | Build established: Wizard-Assassin 23594 | -6/Factory | Core integrity fell below 50% 24372 | -6/Factory | Garrison activated, responded to threat 24701 | -6/Factory | Spotted B-75 Beast 24745 | -6/Factory | Build established: Wizard-Scout 24747 | -6/Factory | Fabricated M-13 Machinist? 24865 | -6/Factory | Core integrity fell below 20% 26517 | -6/Factory | Adv. Hacking Suite fried by hacking feedback 26573 | -6/Factory | Repaired Broken Imp. Powered Armor 26578 | -6/Factory | Sucked down chute 26578 | -6/Factory | Entered Waste 26579 | -6/Waste | Met a frightened Derelict 26588 | -6/Waste | Warlord forces began an assault 26602 | -6/Waste | Spotted C-40 Crusher 26607 | -6/Waste | Spotted C-40 Crusher 26616 | -6/Waste | Allies destroyed C-40 Crusher 26637 | -6/Waste | Spotted C-40 Crusher 26639 | -6/Waste | Spotted C-40 Crusher 26642 | -6/Waste | Allies destroyed C-40 Crusher 26643 | -6/Waste | Spotted C-40 Crusher 26644 | -6/Waste | Spotted C-40 Crusher 26646 | -6/Waste | Lost 5 allies 26647 | -6/Waste | Destroyed C-40 Crusher 26648 | -6/Waste | Allies destroyed C-40 Crusher 26653 | -6/Waste | Allies destroyed C-40 Crusher 26736 | -6/Waste | Discovered new exit (range 16) 26771 | -6/Waste | Identified exit to Factory 26799 | -6/Waste | Entered Factory 26799 | -6/Factory | Accompanied by 14 allies 26887 | -6/Factory | Fabricated Imp. Armor Integrity Analyzer (x1) 26917 | -6/Factory | Identified exit to Garrison 27071 | -6/Factory | Garrison activated, responded to threat 27072 | -6/Factory | Fabricated Adv. Hacking Suite (x1) 27324 | -6/Factory | Discovered exit to Extension (range 11) 27325 | -6/Factory | Reached level 20 27360 | -6/Factory | Adv. Hacking Suite fried by hacking feedback 27411 | -6/Factory | Discovered exit to Factory (range 29) 27431 | -6/Factory | P-60 Hacker assimilated allied C6-VHD(g) 27468 | -6/Factory | Lost 3 allies 27476 | -6/Factory | Discovered exit to Lower Caves (range 5) 27499 | -6/Factory | First assault squad dispatched 27528 | -6/Factory | Discovered exit to Factory (range 16) 27574 | -6/Factory | Hacking Suite fried by hacking feedback 27712 | -6/Factory | Cargo convoy interrupted 27831 | -6/Factory | Entered Garrison 27836 | -6/Garrison | Expanded RIF knowledge: Autoassimilate 27850 | -6/Garrison | Triggered checkpoint 27874 | -6/Garrison | Build established: Hacker-Scout 27890 | -6/Garrison | Garrison Relay disabled 27916 | -6/Garrison | Triggered checkpoint 27918 | -6/Garrison | Triggered checkpoint 28010 | -6/Garrison | Heavy support dispatched to Factory 28092 | -6/Garrison | Reached level 21 28132 | -6/Garrison | Garrison Relay disabled 28134 | -6/Garrison | Upgraded with Utility slot (x1) 28142 | -6/Garrison | Triggered checkpoint 28229 | -6/Garrison | H-XX Assembler disabled 28241 | -6/Garrison | Discovered exit to Factory (range 10) 28355 | -6/Garrison | Discovered exit to Factory (range 12) 28380 | -6/Garrison | Triggered checkpoint 28434 | -6/Garrison | Garrison Relay disabled 28571 | -6/Garrison | Garrison Relay disabled 28578 | -6/Garrison | Triggered checkpoint 28592 | -6/Garrison | Discovered exit to Factory (range 3) 28680 | -6/Garrison | Entered Factory 28718 | -5/Factory | Identified exit to Upper Caves 28781 | -5/Factory | Fabricated Adv. Hacking Suite (x1) 29063 | -5/Factory | Fabricated K-01 Serf? 29118 | -5/Factory | Fabricated Multitool? 29181 | -5/Factory | Reached level 22 29317 | -5/Factory | Build established: Wizard-Scout 29319 | -5/Factory | Destroyed 9 combat bots 29437 | -5/Factory | Identified exit to Garrison 29440 | -5/Factory | Entered Garrison 29458 | -5/Garrison | Garrison Relay disabled 29592 | -5/Garrison | Core integrity fell below 50% 29652 | -5/Garrison | Triggered checkpoint 29702 | -5/Garrison | Triggered checkpoint 29710 | -5/Garrison | Destroyed 15 combat bots 29729 | -5/Garrison | Garrison Relay disabled 29774 | -5/Garrison | Expanded RIF knowledge: Coupler Efficiency 29774 | -5/Garrison | Reached level 23 29781 | -5/Garrison | Discovered new exit (range 14) 29789 | -5/Garrison | Identified exit to Factory 29901 | -5/Garrison | Spotted B-75 Beast 29907 | -5/Garrison | Found Relay Coupler [Proto] 29917 | -5/Garrison | Core integrity fell below 20% 29919 | -5/Garrison | Discovered exit to Factory (range 8) 29923 | -5/Garrison | Entered Factory 29924 | -4/Factory | Core integrity fell below 50% 29924 | -4/Factory | Core integrity fell below 20% 29981 | -4/Factory | Identified exit to Upper Caves 29981 | -4/Factory | Identified exit to Armory 30031 | -4/Factory | Central database locked down 30118 | -4/Factory | Reached level 24 30186 | -4/Factory | Fabricated Imp. Powered Armor (x1) 30304 | -4/Factory | Fabricated Cld. Antigrav System? 30361 | -4/Factory | Upgraded with Utility slot (x1) 30441 | -4/Factory | Destroyed by G-67 Veteran with Plasma Rifle Last Messages --------------- Found 5 applicable machines. GV33WR3QWL: Power Conduit XKYLM606VB: Power Conduit E5JP6K391X: Power Conduit M61ZHP07DA: Fusion Modulator J5IN8E9PCL: Fusion Modulator Infected machine control systems. >>Alert(Purge) Purged threat record, alert level lowered. >>Alert(Purge) Purged threat record, alert level lowered. >>Alert(Purge) Purged threat record, alert level lowered. >>Force(Sabotage) SYSTEM_VULNERABLE[Nuclear Reactor] NETWORK_OVERLOAD_FAIL 30436_ ALERT: Suspicious activity at Terminal F016. Dispatching Investigation squad. 30437_ >> Watcher Feeds: Feed link from W-44 Eye lost. Map ----- +----------------------------------------------------+ | ????????????????# = # # ####?# | | ????????????????# # " " " # ##?#?# | | ############??#?# # " " " # #??#?? | | ???# # " " " #%= #??#?? | | ? ?# # " " " # #???#? | | ? ?+ # " " " # #?###? | | ???# # " " " # #?#??# | | ???# # " " " + ###### | | #####+##### ? ?# # " " " # " | | #?????#??????# # " " " # ###### | | #?????#??????# # # #?##?# | | #???"?#??? ??##################+######+###????# | | #??????? ?????## !!! # ????? ? ??# | | #?????#? #??#?? """" !! # ? ??? ? ??# | | #???? ?# #?#?#??"""" !! #? ? ? ?## | | #???? ?#k #???## """" # ?? ? ? ?# | | #??????# #???# """" # ? ? ?? ? ???? | | ####???"??# #?#?## """" "" #? ? ??## | | #?????????# k ##???# """" """ #? ? ? ? #? | | #?#???????# ##??##Y T" #? ???? ? ## | | #????? ???# #???## ! """ #?????#?#?##?## | | #?????????# #?#??# ! "" #?? ? ??##?#?# | | #?????????# #???## #???"? ? ???#?? | | ########### #??#?####+#+########??"?" ??##??#? | | #?##??### ##?##? "?" ??##?#? | | #???#??##@ #??#?? ? ???###?? | | #??#?##?# +? ?"" ???##??? | | #??#????# ######? """ ? #?#### | | k #?????#?# #????????"" ??#?## | | ########### #??#??#?# ####????? ??#?### | | ???????? # t######### ##########+######### | | ????????? # m | | ???? ?????/ g k | | ??????????# """"" g | | ????????? # ""T"" | | ??????????# gg | | ??????????# =! ###A########### ####"T# | | ??????????# R! # ## #??#""# | | ?########## %] ! # ## #??#### | | ?# + ] # ! ## #?????# | | ?# """ # ] # ## #?????# | | ?# """ # # """ """ ## #?#???# | | ?# """ # # """ """ ## #????## | | ?? ######## # """ """ ## #????## | | ??? """ #??????# # ## ????### | | ?? """ !#????#?# + """ """ ## #???#"" | | ?? """ #???#??# # """ """ ## #???#"T | | ?#?? #??????# # """ """ ## #???### | | ??????####????#### # ## #????## | | ??????????????+^ ############### #?????# | +----------------------------------------------------+ Best States ------------- Heat Dissipation 68 Energy Generation 22 Energy Capacity 880 Matter Stores 700 Matter Capacity 700 Sight Range 16 Robot Scan Range 20 Terrain Scan Range 24 Terrain Scan Density 210 Additional Mass Support 9 Armor Coverage 800 Resistance: KI 10 Resistance: EM 25 Phase Shifting 10 Evasion (%) 64 Armor Integrity Analysis 40 Recoil Reduction 1 Salvage Targeting 3 Offensive Hacking 84 Defensive Hacking 20 Relay Coupler Types 2 Relay Coupler Value 111 Authchip Count 2 Trap Extractor Capacity 8 Item Schematics ----------------- Hacking Suite | -8/Materials | Hacked Multitool | -8/Materials | Scanalyzed Hyb. Deuterium Engine | -8/Materials | Scanalyzed Powered Armor | -8/Materials | Hacked Cmb. Airjet | -8/Materials | Scanalyzed Imp. Shield Generator | -8/Materials | Scanalyzed Imp. EM Shotgun | -8/Materials | Hacked System Restoration Module | -8/Materials | Scanalyzed Adv. Trap Extractor | -8/Materials | Scanalyzed Enh. Autogun | -8/Materials | Scanalyzed Shock Rifle | -8/Materials | Scanalyzed Cmb. Gravmag System | -8/Materials | Scanalyzed Shock Bomb Launcher | -8/Materials | Scanalyzed Hrd. Medium Armor Plating | -8/Materials | Scanalyzed Adv. Terrain Scanner | -7/Factory | Hacked Hyb. Fission Core | -7/Garrison | Hacked Adv. Shield Generator | -7/Factory | Hacked Adv. Hacking Suite | -7/Factory | Hacked Adv. Salvage Targeting Computer | -7/Factory | Hacked Imp. Powered Armor | -7/Factory | Hacked Tesla Rifle | -7/Factory | Hacked Com. Ion Cannon | -7/Factory | Hacked Adv. Signal Interpreter | -7/Factory | Hacked Imp. Gravmag System | -7/Factory | Hacked Cloaking Device | -7/Factory | Hacked Xenon Bombardment Thruster | -7/Factory | Hacked Cld. Gravmag System | -7/Factory | Scanalyzed Adv. KE Penetrator | -7/Factory | Scanalyzed Gravity Flail | -7/Factory | Scanalyzed Imp. Component Analysis Suite | -6/Factory | Hacked Centrium Wheel | -6/Factory | Hacked Adv. System Restoration Module | -6/Factory | Hacked Quantum Capacitor | -6/Factory | Hacked Micro-nuke Launcher | -6/Factory | Hacked Com. Tesla Bomb Launcher | -4/Factory | Scanalyzed Cld. Antigrav System | -4/Factory | Hacked Robot Schematics ------------------ M-13 Machinist | -10/Materials | Hacked A-02 Transporter | -8/Materials | Hacked B-48 Gladiator | -7/Factory | Hacked Fabricated ------------ Powered Armor | x2 | -7/Factory | Authchip Energy Well | x2 | -7/Factory | Preloaded Adv. Hacking Suite | x1 | -7/Factory Adv. Hacking Suite | x1 | -7/Factory Adv. Hacking Suite | x1 | -7/Factory Imp. Powered Armor | x1 | -7/Factory Adv. Salvage Targeting Computer | x1 | -6/Factory M-13 Machinist | x1 | -6/Factory Imp. Armor Integrity Analyzer | x1 | -6/Factory | Preloaded Adv. Hacking Suite | x1 | -6/Factory Adv. Hacking Suite | x1 | -5/Factory K-01 Serf | x1 | -5/Factory | Preloaded Multitool | x1 | -5/Factory Imp. Powered Armor | x1 | -4/Factory | Authchip Cld. Antigrav System | x1 | -4/Factory Alien Tech Used ----------------- None Achievements -------------- None Challenges ------------ None RPGLIKE | -11 -10 -10 -10 -8 -8 -8 -7 -7 -7 -7 -7 -7 -6 -6 -6 -6 -5 -5 -4 --------- Run | Yrd Mat Min Sub Mat Gar Mat Fac Was Fac Gar Fac Gar Fac Was Fac Gar Fac Gar Fac Levels Raised 23 | . 2 1 1 5 2 1 3 . . . 1 1 1 . 1 1 1 1 1 XP Earned 37774 | 3000 3309 1750 1833 7256 3437 1580 3874 83 173 447 1305 885 2050 87 1454 749 1732 1043 1727 XP Spent 36715 | 2350 2020 800 2800 7750 3700 1560 4315 . . . 1400 . 2900 . . 3200 . . 3920 Upgrades 55 | 7 5 1 4 7 5 3 12 . . . 2 . 1 . . 1 . . 7 Power Slot 1 | . . . . 1 . . . . . . . . . . . . . . . Propulsion Slot 2 | 1 . . . . 1 . . . . . . . . . . . . . . Utility Slot 11 | 1 1 . 1 3 1 . 1 . . . . . 1 . . 1 . . 1 Weapon Slot 2 | 1 . 1 . . . . . . . . . . . . . . . . . Core Integrity 8 | . . . . . . 2 . . . . . . . . . . . . 6 Heat Dissipation 4 | 1 1 . . . 2 . . . . . . . . . . . . . . Mass Support 2 | . . . 2 . . . . . . . . . . . . . . . . Inventory Capacity 6 | 2 1 . 1 1 . 1 . . . . . . . . . . . . . Sensor Range 10 | . . . . . . . 10 . . . . . . . . . . . . Terrain Scan Density 2 | 1 . . . . . . 1 . . . . . . . . . . . . Ranged Accuracy 1 | . . . . . 1 . . . . . . . . . . . . . . Hack Attack % 4 | . 1 . . 1 . . . . . . 2 . . . . . . . . Hack Defense % 2 | . 1 . . 1 . . . . . . . . . . . . . . . Protomatter Created 5594 | 47 292 178 181 381 103 763 853 . . 106 491 408 415 . 120 500 322 222 212 Integrity Restored 14676 | 141 804 250 630 1172 369 1647 1556 285 . 259 919 1172 1022 393 742 1375 896 498 546 Core 12305 | 141 643 95 630 959 369 1276 1270 222 . 210 782 1166 1017 393 233 1105 750 498 546 Parts 2371 | . 161 155 . 213 . 371 286 63 . 49 137 6 5 . 509 270 146 . . Protomatter Decayed 1527 | 5 . 83 87 32 . 111 244 78 . 18 274 67 72 . 375 . 19 41 21 Game ------ Seed LegFrostTreads Manual? 0 Play Time 05:12:17 Cumulative 694.5 hours Start 2024.04.07 @ 09:34:58 End 2024.04.09 @ 23:28:28 Sessions 3 Manual Loads 0 Difficulty Rogue Special Mode Winter2019/RPGLIKE Game No. 280 Rogue 252 Adventurer 3 Explorer 25 Win Type - Total 16 Types 10/3/1/1/0/1/0/0/0 Lore% 91 Gallery% 96 Achievement% 85 Wizard Run 0 Options --------- Layout 2 ASCII 0 Keyboard 0 Movement Numpad Keybinds 0 Fullscreen 2 Font 24/Smallcaps Map View 50x44 Zoom Use 0% Tactical HUD 1 Map Filters NONE Filters NONE Steam 1 RUN: 2002e132-91f7-4224-8621-351bb326bf9e